[Event "Titled Tuesday Blitz July 18 Late 2023"]
[White "Graif, William"]
[Black "K2JW"]
[WhiteFideId "2609835"]
[WhiteElo "2519"]
[BlackElo "2356"]
[Result "1-0"]
[Round "5"]
[TimeControl "180+2"]
[Date "2023.07.18"]
[WhiteClock "0:01:21"]
[BlackClock "0:00:23"]
[Board "101"]

1. e4 {[%clk 0:02:48]}  c6 {[%clk 0:03:00]} 2. d4 {[%clk 0:02:48]}  d5 {[%clk 0:03:00]} 3. Nc3 {[%clk 0:02:47]}  dxe4 {[%clk 0:03:00]} 4. Bc4 {[%clk 0:02:47]}  Nf6 {[%clk 0:02:58]} 5. f3 {[%clk 0:02:47]}  exf3 {[%clk 0:02:57]} 6. Nxf3 {[%clk 0:02:48]}  Bf5 {[%clk 0:02:55]} 7. O-O {[%clk 0:02:47]}  e6 {[%clk 0:02:55]} 8. Ng5 {[%clk 0:02:47]}  Bg6 {[%clk 0:02:51]} 9. Bxe6 {[%clk 0:02:46]}  fxe6 {[%clk 0:02:48]} 10. Nxe6 {[%clk 0:02:47]}  Qd7 {[%clk 0:02:30]} 11. Bg5 {[%clk 0:02:46]}  Be7 {[%clk 0:02:20]} 12. Nxg7+ {[%clk 0:02:43]}  Kf7 {[%clk 0:02:19]} 13. Nh5 {[%clk 0:02:08]}  Bxh5 {[%clk 0:01:11]} 14. Qxh5+ {[%clk 0:02:06]}  Kg8 {[%clk 0:01:08]} 15. Bxf6 {[%clk 0:01:26]}  Bxf6 {[%clk 0:01:07]} 16. Rxf6 {[%clk 0:01:24]}  Qxd4+ {[%clk 0:01:00]} 17. Rf2 {[%clk 0:01:23]}  Qg7 {[%clk 0:00:23]} 18. Qe8+ {[%clk 0:01:21]} 1-0


[Site "https://www.chess.com"]

[Event "Titled Tuesday Blitz July 18 Late 2023"]
[White "Adireddy Arjun"]
[Black "Philippe, Guillaume"]
[WhiteFideId "25647709"]
[BlackFideId "36048763"]
[WhiteElo "2356"]
[BlackElo "2515"]
[Result "0-1"]
[Round "5"]
[TimeControl "180+2"]
[Date "2023.07.18"]
[WhiteClock "0:00:00"]
[BlackClock "0:01:19"]
[Board "102"]

1. Nf3 {[%clk 0:03:00]}  Nf6 {[%clk 0:02:59]} 2. g3 {[%clk 0:03:00]}  e6 {[%clk 0:03:00]} 3. Bg2 {[%clk 0:02:58]}  d5 {[%clk 0:02:57]} 4. O-O {[%clk 0:02:57]}  Be7 {[%clk 0:02:55]} 5. d4 {[%clk 0:02:57]}  O-O {[%clk 0:02:52]} 6. c4 {[%clk 0:02:56]}  dxc4 {[%clk 0:02:49]} 7. Nc3 {[%clk 0:02:56]}  Nc6 {[%clk 0:02:45]} 8. e3 {[%clk 0:02:46]}  a6 {[%clk 0:02:43]} 9. a4 {[%clk 0:02:46]}  Na5 {[%clk 0:02:41]} 10. Nd2 {[%clk 0:02:42]}  Rb8 {[%clk 0:02:36]} 11. Qe2 {[%clk 0:02:40]}  c5 {[%clk 0:02:36]} 12. dxc5 {[%clk 0:02:37]}  Bxc5 {[%clk 0:02:37]} 13. Nxc4 {[%clk 0:02:37]}  Nb3 {[%clk 0:02:35]} 14. Rb1 {[%clk 0:02:34]}  b5 {[%clk 0:02:33]} 15. Nd2 {[%clk 0:02:23]}  Nxd2 {[%clk 0:02:30]} 16. Bxd2 {[%clk 0:02:22]}  b4 {[%clk 0:02:29]} 17. Ne4 {[%clk 0:02:20]}  Nxe4 {[%clk 0:02:30]} 18. Bxe4 {[%clk 0:02:21]}  a5 {[%clk 0:02:27]} 19. Rfd1 {[%clk 0:02:16]}  Qb6 {[%clk 0:02:24]} 20. Rbc1 {[%clk 0:02:11]}  Ba6 {[%clk 0:02:19]} 21. Bd3 {[%clk 0:01:59]}  Bb7 {[%clk 0:02:17]} 22. Bxh7+ {[%clk 0:01:46]}  Kxh7 {[%clk 0:02:13]} 23. Qh5+ {[%clk 0:01:45]}  Kg8 {[%clk 0:02:13]} 24. Qxc5 {[%clk 0:01:44]}  Qxc5 {[%clk 0:02:07]} 25. Rxc5 {[%clk 0:01:45]}  Rbd8 {[%clk 0:02:08]} 26. Kf1 {[%clk 0:01:28]}  Bf3 {[%clk 0:02:08]} 27. Ke1 {[%clk 0:01:28]}  Bxd1 {[%clk 0:02:07]} 28. Kxd1 {[%clk 0:01:29]}  Rd3 {[%clk 0:02:01]} 29. Ke2 {[%clk 0:01:02]}  Rfd8 {[%clk 0:02:00]} 30. Be1 {[%clk 0:01:03]}  R3d5 {[%clk 0:01:53]} 31. Rc2 {[%clk 0:01:01]}  Rd1 {[%clk 0:01:51]} 32. Rc5 {[%clk 0:00:57]}  Rb1 {[%clk 0:01:51]} 33. Rxa5 {[%clk 0:00:50]}  Rxb2+ {[%clk 0:01:51]} 34. Kf3 {[%clk 0:00:50]}  b3 {[%clk 0:01:37]} 35. Rb5 {[%clk 0:00:43]}  Rc8 {[%clk 0:01:32]} 36. a5 {[%clk 0:00:17]}  Rc1 {[%clk 0:01:29]} 37. Bb4 {[%clk 0:00:16]}  Ra2 {[%clk 0:01:26]} 38. a6 {[%clk 0:00:05]}  b2 {[%clk 0:01:23]} 39. Bc5 {[%clk 0:00:00]}  b1=Q {[%clk 0:01:19]} 0-1


[Site "https://www.chess.com"]

[Event "Titled Tuesday Blitz July 18 Late 2023"]
[White "Kanyamarala, Tarun"]
[Black "Avalos Parra, Joao"]
[WhiteFideId "45004714"]
[BlackFideId "3402541"]
[WhiteElo "2514"]
[BlackElo "2354"]
[Result "1-0"]
[Round "5"]
[TimeControl "180+2"]
[Date "2023.07.18"]
[WhiteClock "0:01:35"]
[BlackClock "0:00:14"]
[Board "103"]

1. Nc3 {[%clk 0:03:00]}  e5 {[%clk 0:02:52]} 2. Nf3 {[%clk 0:02:58]}  Nc6 {[%clk 0:02:24]} 3. e4 {[%clk 0:02:51]}  Nf6 {[%clk 0:02:23]} 4. d4 {[%clk 0:02:49]}  exd4 {[%clk 0:02:18]} 5. Nxd4 {[%clk 0:02:49]}  Bb4 {[%clk 0:02:18]} 6. Nxc6 {[%clk 0:02:48]}  bxc6 {[%clk 0:02:18]} 7. Bd3 {[%clk 0:02:48]}  d5 {[%clk 0:02:18]} 8. exd5 {[%clk 0:02:48]}  O-O {[%clk 0:02:19]} 9. O-O {[%clk 0:02:48]}  cxd5 {[%clk 0:02:18]} 10. h3 {[%clk 0:02:45]}  c6 {[%clk 0:02:03]} 11. Qf3 {[%clk 0:02:43]}  Bd6 {[%clk 0:02:00]} 12. Bg5 {[%clk 0:02:42]}  Rb8 {[%clk 0:01:56]} 13. Na4 {[%clk 0:02:33]}  Be6 {[%clk 0:01:52]} 14. b3 {[%clk 0:02:31]}  h6 {[%clk 0:01:48]} 15. Bh4 {[%clk 0:02:30]}  Rb4 {[%clk 0:01:49]} 16. Bg3 {[%clk 0:02:30]}  Bxg3 {[%clk 0:01:39]} 17. Qxg3 {[%clk 0:02:29]}  Ne4 {[%clk 0:01:14]} 18. Qe3 {[%clk 0:02:23]}  Nd6 {[%clk 0:01:09]} 19. Qxa7 {[%clk 0:02:20]}  Qg5 {[%clk 0:01:05]} 20. Qe3 {[%clk 0:02:09]}  Qf6 {[%clk 0:00:57]} 21. Qc5 {[%clk 0:02:03]}  Rxa4 {[%clk 0:00:32]} 22. bxa4 {[%clk 0:01:59]}  Rd8 {[%clk 0:00:31]} 23. Qe3 {[%clk 0:01:53]}  d4 {[%clk 0:00:16]} 24. Qg3 {[%clk 0:01:53]}  c5 {[%clk 0:00:15]} 25. Rfe1 {[%clk 0:01:45]}  c4 {[%clk 0:00:16]} 26. Bf1 {[%clk 0:01:45]}  Nf5 {[%clk 0:00:14]} 27. Qf4 {[%clk 0:01:42]}  g5 {[%clk 0:00:14]} 28. Qc7 {[%clk 0:01:41]}  Qg6 {[%clk 0:00:14]} 29. Qxd8+ {[%clk 0:01:35]} 1-0


[Site "https://www.chess.com"]

[Event "Titled Tuesday Blitz July 18 Late 2023"]
[White "Balague Camps, Marc"]
[Black "Fernandez Siles, Luis"]
[WhiteFideId "2297914"]
[BlackFideId "2209420"]
[WhiteElo "2513"]
[BlackElo "2315"]
[Result "1-0"]
[Round "5"]
[TimeControl "180+2"]
[Date "2023.07.18"]
[WhiteClock "0:00:19"]
[BlackClock "0:00:00"]
[Board "105"]

1. d4 {[%clk 0:03:00]}  Nf6 {[%clk 0:02:58]} 2. c4 {[%clk 0:03:01]}  g6 {[%clk 0:02:59]} 3. Nc3 {[%clk 0:03:01]}  d5 {[%clk 0:02:59]} 4. Nf3 {[%clk 0:03:01]}  Bg7 {[%clk 0:02:59]} 5. Qb3 {[%clk 0:03:02]}  dxc4 {[%clk 0:02:57]} 6. Qxc4 {[%clk 0:03:03]}  O-O {[%clk 0:02:48]} 7. e4 {[%clk 0:03:02]}  Bg4 {[%clk 0:02:45]} 8. Be3 {[%clk 0:02:57]}  Nc6 {[%clk 0:02:39]} 9. Rd1 {[%clk 0:02:45]}  Nd7 {[%clk 0:02:35]} 10. h3 {[%clk 0:02:34]}  Nb6 {[%clk 0:02:27]} 11. Qd3 {[%clk 0:02:33]}  Bxf3 {[%clk 0:02:26]} 12. gxf3 {[%clk 0:02:33]}  e5 {[%clk 0:02:24]} 13. d5 {[%clk 0:02:32]}  Nd4 {[%clk 0:02:24]} 14. Bg2 {[%clk 0:02:26]}  c6 {[%clk 0:02:12]} 15. dxc6 {[%clk 0:02:14]}  bxc6 {[%clk 0:02:13]} 16. O-O {[%clk 0:02:14]}  Qh4 {[%clk 0:02:06]} 17. Ne2 {[%clk 0:01:58]}  c5 {[%clk 0:01:56]} 18. Bxd4 {[%clk 0:01:55]}  exd4 {[%clk 0:01:55]} 19. b3 {[%clk 0:01:55]}  Be5 {[%clk 0:01:50]} 20. Qd2 {[%clk 0:01:55]}  g5 {[%clk 0:01:50]} 21. Rc1 {[%clk 0:01:47]}  Rac8 {[%clk 0:01:46]} 22. Rfd1 {[%clk 0:01:48]}  f5 {[%clk 0:01:34]} 23. Qd3 {[%clk 0:01:31]}  g4 {[%clk 0:01:22]} 24. hxg4 {[%clk 0:01:22]}  fxg4 {[%clk 0:01:21]} 25. f4 {[%clk 0:01:20]}  Bxf4 {[%clk 0:01:12]} 26. Nxf4 {[%clk 0:01:20]}  Rxf4 {[%clk 0:01:13]} 27. Rd2 {[%clk 0:01:19]}  Rcf8 {[%clk 0:01:09]} 28. Rcc2 {[%clk 0:01:18]}  Nd7 {[%clk 0:01:06]} 29. Qc4+ {[%clk 0:01:07]}  Kh8 {[%clk 0:01:04]} 30. Qd5 {[%clk 0:01:07]}  g3 {[%clk 0:00:35]} 31. Qxd7 {[%clk 0:00:57]}  gxf2+ {[%clk 0:00:35]} 32. Kf1 {[%clk 0:00:56]}  Qh2 {[%clk 0:00:35]} 33. Rxf2 {[%clk 0:00:51]}  Qg3 {[%clk 0:00:23]} 34. Rxf4 {[%clk 0:00:31]}  Rxf4+ {[%clk 0:00:20]} 35. Kg1 {[%clk 0:00:31]}  Qe3+ {[%clk 0:00:16]} 36. Kh2 {[%clk 0:00:27]}  Rh4+ {[%clk 0:00:14]} 37. Bh3 {[%clk 0:00:28]}  Qf4+ {[%clk 0:00:14]} 38. Kg1 {[%clk 0:00:25]}  Qe3+ {[%clk 0:00:10]} 39. Rf2 {[%clk 0:00:22]}  Qg3+ {[%clk 0:00:08]} 40. Bg2 {[%clk 0:00:21]}  Qh2+ {[%clk 0:00:04]} 41. Kf1 {[%clk 0:00:21]}  Rf4 {[%clk 0:00:02]} 42. Qc8+ {[%clk 0:00:18]}  Kg7 {[%clk 0:00:00]} 43. Qc7+ {[%clk 0:00:19]} 1-0


[Site "https://www.chess.com"]

[Event "Titled Tuesday Blitz July 18 Late 2023"]
[White "Bartel, Marta"]
[Black "Hnydiuk, Aleksander"]
[WhiteFideId "1123009"]
[BlackFideId "1109057"]
[WhiteElo "2286"]
[BlackElo "2510"]
[Result "0-1"]
[Round "5"]
[TimeControl "180+2"]
[Date "2023.07.18"]
[WhiteClock "0:00:00"]
[BlackClock "0:00:33"]
[Board "107"]

1. d4 {[%clk 0:02:53]}  d5 {[%clk 0:02:59]} 2. c4 {[%clk 0:02:53]}  c6 {[%clk 0:03:00]} 3. cxd5 {[%clk 0:02:53]}  cxd5 {[%clk 0:02:59]} 4. Bf4 {[%clk 0:02:53]}  Nf6 {[%clk 0:02:58]} 5. e3 {[%clk 0:02:54]}  Nc6 {[%clk 0:02:57]} 6. Nc3 {[%clk 0:02:54]}  a6 {[%clk 0:02:57]} 7. Rc1 {[%clk 0:02:49]}  Bg4 {[%clk 0:02:56]} 8. Nf3 {[%clk 0:02:42]}  e6 {[%clk 0:02:53]} 9. h3 {[%clk 0:02:42]}  Bxf3 {[%clk 0:02:52]} 10. Qxf3 {[%clk 0:02:42]}  Bd6 {[%clk 0:02:52]} 11. Bg5 {[%clk 0:02:42]}  O-O {[%clk 0:02:51]} 12. Bd3 {[%clk 0:02:42]}  h6 {[%clk 0:02:46]} 13. Bh4 {[%clk 0:02:40]}  Be7 {[%clk 0:02:27]} 14. O-O {[%clk 0:02:39]}  Nd7 {[%clk 0:02:27]} 15. Bg3 {[%clk 0:02:32]}  Rc8 {[%clk 0:02:19]} 16. Bb1 {[%clk 0:02:24]}  b5 {[%clk 0:02:16]} 17. Qe2 {[%clk 0:02:17]}  Nb6 {[%clk 0:02:03]} 18. Qd3 {[%clk 0:02:17]}  g6 {[%clk 0:01:59]} 19. Ne2 {[%clk 0:02:17]}  Nc4 {[%clk 0:01:49]} 20. Nf4 {[%clk 0:01:50]}  Nb4 {[%clk 0:01:43]} 21. Qe2 {[%clk 0:01:47]}  Bg5 {[%clk 0:01:28]} 22. a3 {[%clk 0:01:44]}  Nc6 {[%clk 0:01:27]} 23. Nd3 {[%clk 0:01:22]}  f5 {[%clk 0:01:19]} 24. Nc5 {[%clk 0:01:19]}  Qe7 {[%clk 0:01:14]} 25. Nxa6 {[%clk 0:01:14]}  Nxd4 {[%clk 0:01:06]} 26. exd4 {[%clk 0:01:11]}  Bxc1 {[%clk 0:01:05]} 27. Rxc1 {[%clk 0:01:11]}  f4 {[%clk 0:01:05]} 28. Bh2 {[%clk 0:00:47]}  Qg5 {[%clk 0:01:05]} 29. Qxe6+ {[%clk 0:00:40]}  Kg7 {[%clk 0:00:58]} 30. Qg4 {[%clk 0:00:33]}  Qxg4 {[%clk 0:00:56]} 31. hxg4 {[%clk 0:00:34]}  Nxa3 {[%clk 0:00:46]} 32. Re1 {[%clk 0:00:11]}  Nxb1 {[%clk 0:00:44]} 33. Rxb1 {[%clk 0:00:11]}  Rc4 {[%clk 0:00:41]} 34. Rd1 {[%clk 0:00:08]}  g5 {[%clk 0:00:36]} 35. Nc5 {[%clk 0:00:08]}  Re8 {[%clk 0:00:34]} 36. f3 {[%clk 0:00:00]}  Re2 {[%clk 0:00:33]} 0-1


[Site "https://www.chess.com"]

[Event "Titled Tuesday Blitz July 18 Late 2023"]
[White "Todorovic, Bojan"]
[Black "Velasco, Santiago"]
[WhiteFideId "917087"]
[BlackFideId "4401328"]
[WhiteElo "2376"]
[BlackElo "2569"]
[Result "0-1"]
[Round "5"]
[TimeControl "180+2"]
[Date "2023.07.18"]
[WhiteClock "0:01:04"]
[BlackClock "0:01:28"]
[Board "114"]

1. d4 {[%clk 0:02:58]}  d5 {[%clk 0:02:57]} 2. c4 {[%clk 0:02:58]}  e6 {[%clk 0:02:58]} 3. Nc3 {[%clk 0:02:57]}  Nf6 {[%clk 0:02:58]} 4. cxd5 {[%clk 0:02:57]}  exd5 {[%clk 0:02:58]} 5. Bg5 {[%clk 0:02:56]}  Bb4 {[%clk 0:02:58]} 6. e3 {[%clk 0:02:54]}  h6 {[%clk 0:02:59]} 7. Bxf6 {[%clk 0:02:53]}  Qxf6 {[%clk 0:03:00]} 8. Qa4+ {[%clk 0:02:48]}  Nc6 {[%clk 0:02:59]} 9. Nf3 {[%clk 0:02:44]}  O-O {[%clk 0:02:58]} 10. Bb5 {[%clk 0:02:37]}  a5 {[%clk 0:02:31]} 11. O-O {[%clk 0:02:34]}  Ne7 {[%clk 0:02:27]} 12. a3 {[%clk 0:02:21]}  Bd6 {[%clk 0:02:25]} 13. Be2 {[%clk 0:02:05]}  c6 {[%clk 0:02:25]} 14. Qd1 {[%clk 0:01:52]}  Bf5 {[%clk 0:02:22]} 15. Rc1 {[%clk 0:01:51]}  Ng6 {[%clk 0:02:11]} 16. Na4 {[%clk 0:01:49]}  Rfe8 {[%clk 0:02:07]} 17. Nc5 {[%clk 0:01:48]}  Re7 {[%clk 0:02:07]} 18. b4 {[%clk 0:01:46]}  axb4 {[%clk 0:02:06]} 19. axb4 {[%clk 0:01:45]}  Ra2 {[%clk 0:01:52]} 20. b5 {[%clk 0:01:31]}  Nf4 {[%clk 0:01:40]} 21. Bd3 {[%clk 0:01:18]}  Bxd3 {[%clk 0:01:33]} 22. Nxd3 {[%clk 0:01:17]}  Ne2+ {[%clk 0:01:33]} 23. Kh1 {[%clk 0:01:16]}  Nxc1 {[%clk 0:01:34]} 24. Nxc1 {[%clk 0:01:14]}  Ra8 {[%clk 0:01:33]} 25. bxc6 {[%clk 0:01:14]}  bxc6 {[%clk 0:01:33]} 26. Qc2 {[%clk 0:01:13]}  Rc7 {[%clk 0:01:32]} 27. Nd3 {[%clk 0:01:12]}  Qg6 {[%clk 0:01:29]} 28. Qc3 {[%clk 0:01:04]}  Ra3 {[%clk 0:01:28]} 0-1


[Site "https://www.chess.com"]

[Event "Titled Tuesday Blitz July 18 Late 2023"]
[White "Topalov, Aleksandar"]
[Black "Jimenez Almeida, Luis David"]
[WhiteFideId "925659"]
[BlackFideId "22242244"]
[WhiteElo "2384"]
[BlackElo "2564"]
[Result "0-1"]
[Round "5"]
[TimeControl "180+2"]
[Date "2023.07.18"]
[WhiteClock "0:00:00"]
[BlackClock "0:00:45"]
[Board "115"]

1. b3 {[%clk 0:03:00]}  a5 {[%clk 0:02:57]} 2. a3 {[%clk 0:03:00]}  e5 {[%clk 0:02:56]} 3. Bb2 {[%clk 0:03:00]}  Nc6 {[%clk 0:02:56]} 4. c4 {[%clk 0:03:00]}  g6 {[%clk 0:02:53]} 5. Nc3 {[%clk 0:02:59]}  Bg7 {[%clk 0:02:53]} 6. g3 {[%clk 0:02:59]}  h5 {[%clk 0:02:53]} 7. h4 {[%clk 0:02:50]}  d6 {[%clk 0:02:52]} 8. Bg2 {[%clk 0:02:50]}  Nge7 {[%clk 0:02:48]} 9. e3 {[%clk 0:02:50]}  Bg4 {[%clk 0:02:47]} 10. Qc2 {[%clk 0:02:48]}  Qd7 {[%clk 0:02:44]} 11. Nf3 {[%clk 0:02:39]}  O-O {[%clk 0:02:28]} 12. Ng5 {[%clk 0:02:37]}  Bf5 {[%clk 0:02:24]} 13. Nge4 {[%clk 0:02:32]}  d5 {[%clk 0:02:19]} 14. cxd5 {[%clk 0:02:29]}  Nxd5 {[%clk 0:02:17]} 15. Nxd5 {[%clk 0:02:29]}  Qxd5 {[%clk 0:02:18]} 16. O-O {[%clk 0:02:20]}  Qd7 {[%clk 0:02:11]} 17. d3 {[%clk 0:02:05]}  b6 {[%clk 0:02:01]} 18. Rac1 {[%clk 0:02:03]}  Na7 {[%clk 0:01:39]} 19. Qxc7 {[%clk 0:01:59]}  Qxd3 {[%clk 0:01:37]} 20. Rc3 {[%clk 0:01:39]}  Nb5 {[%clk 0:01:32]} 21. Rxd3 {[%clk 0:01:33]}  Nxc7 {[%clk 0:01:32]} 22. Rd6 {[%clk 0:01:19]}  Rab8 {[%clk 0:01:26]} 23. Nf6+ {[%clk 0:01:06]}  Kh8 {[%clk 0:01:24]} 24. Bxe5 {[%clk 0:00:49]}  Nb5 {[%clk 0:01:15]} 25. Rd2 {[%clk 0:00:38]}  Rbc8 {[%clk 0:01:08]} 26. a4 {[%clk 0:00:30]}  Nc3 {[%clk 0:01:04]} 27. Bf3 {[%clk 0:00:10]}  Be6 {[%clk 0:00:59]} 28. Bd4 {[%clk 0:00:08]}  Bxb3 {[%clk 0:00:55]} 29. Rc1 {[%clk 0:00:06]}  Ne2+ {[%clk 0:00:54]} 30. Bxe2 {[%clk 0:00:05]}  Rxc1+ {[%clk 0:00:54]} 31. Kg2 {[%clk 0:00:05]}  Rc2 {[%clk 0:00:51]} 32. Rd3 {[%clk 0:00:00]}  Bc4 {[%clk 0:00:45]} 0-1


[Site "https://www.chess.com"]

[Event "Titled Tuesday Blitz July 18 Late 2023"]
[White "CatLivesMatter"]
[Black "Herbst, Richard"]
[BlackFideId "2041251"]
[WhiteElo "2482"]
[BlackElo "2329"]
[Result "1-0"]
[Round "5"]
[TimeControl "180+2"]
[Date "2023.07.18"]
[WhiteClock "0:01:34"]
[BlackClock "0:00:55"]
[Board "117"]

1. e4 {[%clk 0:03:00]}  Nf6 {[%clk 0:02:58]} 2. e5 {[%clk 0:03:00]}  Nd5 {[%clk 0:02:59]} 3. c4 {[%clk 0:03:01]}  Nb6 {[%clk 0:02:59]} 4. d4 {[%clk 0:03:02]}  d6 {[%clk 0:02:59]} 5. f4 {[%clk 0:03:03]}  g6 {[%clk 0:02:56]} 6. Be2 {[%clk 0:03:03]}  dxe5 {[%clk 0:02:52]} 7. fxe5 {[%clk 0:03:02]}  c5 {[%clk 0:02:52]} 8. d5 {[%clk 0:03:02]}  Bg7 {[%clk 0:02:52]} 9. Nf3 {[%clk 0:03:02]}  Bg4 {[%clk 0:02:52]} 10. Bf4 {[%clk 0:03:01]}  e6 {[%clk 0:02:50]} 11. Nc3 {[%clk 0:02:58]}  N6d7 {[%clk 0:02:44]} 12. Nb5 {[%clk 0:02:53]}  O-O {[%clk 0:02:42]} 13. O-O {[%clk 0:02:50]}  exd5 {[%clk 0:02:27]} 14. cxd5 {[%clk 0:02:45]}  Bxf3 {[%clk 0:02:25]} 15. Bxf3 {[%clk 0:02:34]}  Nxe5 {[%clk 0:02:25]} 16. d6 {[%clk 0:02:33]}  Nxf3+ {[%clk 0:02:25]} 17. Qxf3 {[%clk 0:02:33]}  Nc6 {[%clk 0:02:26]} 18. Rad1 {[%clk 0:02:24]}  Nd4 {[%clk 0:02:17]} 19. Nxd4 {[%clk 0:02:10]}  cxd4 {[%clk 0:02:16]} 20. Qxb7 {[%clk 0:01:55]}  Rb8 {[%clk 0:02:15]} 21. Qd5 {[%clk 0:01:56]}  Rxb2 {[%clk 0:02:15]} 22. d7 {[%clk 0:01:56]}  Qb6 {[%clk 0:01:40]} 23. Bg5 {[%clk 0:01:40]}  Rb5 {[%clk 0:01:17]} 24. d8=Q {[%clk 0:01:38]}  Qxd8 {[%clk 0:00:55]} 25. Qxd8 {[%clk 0:01:34]} 1-0


[Site "https://www.chess.com"]

[Event "Titled Tuesday Blitz July 18 Late 2023"]
[White "kripri"]
[Black "Jovic, Stanoje"]
[BlackFideId "905020"]
[WhiteElo "2327"]
[BlackElo "2474"]
[Result "0-1"]
[Round "5"]
[TimeControl "180+2"]
[Date "2023.07.18"]
[WhiteClock "0:00:11"]
[BlackClock "0:01:08"]
[Board "118"]

1. e4 {[%clk 0:02:07]}  c6 {[%clk 0:02:58]} 2. d4 {[%clk 0:02:06]}  d5 {[%clk 0:02:58]} 3. e5 {[%clk 0:02:06]}  c5 {[%clk 0:02:58]} 4. dxc5 {[%clk 0:02:06]}  e6 {[%clk 0:02:59]} 5. Be3 {[%clk 0:02:06]}  Ne7 {[%clk 0:02:58]} 6. f4 {[%clk 0:02:05]}  Nf5 {[%clk 0:02:52]} 7. Bf2 {[%clk 0:02:05]}  d4 {[%clk 0:02:50]} 8. b4 {[%clk 0:02:01]}  a5 {[%clk 0:02:49]} 9. Bb5+ {[%clk 0:01:53]}  Bd7 {[%clk 0:02:46]} 10. Bxd7+ {[%clk 0:01:48]}  Nxd7 {[%clk 0:02:46]} 11. Nf3 {[%clk 0:01:36]}  axb4 {[%clk 0:02:43]} 12. O-O {[%clk 0:01:31]}  Ne3 {[%clk 0:02:30]} 13. Bxe3 {[%clk 0:01:22]}  dxe3 {[%clk 0:02:30]} 14. Qe2 {[%clk 0:01:13]}  Bxc5 {[%clk 0:02:28]} 15. c3 {[%clk 0:00:59]}  b3 {[%clk 0:02:26]} 16. Kh1 {[%clk 0:00:44]}  Qb6 {[%clk 0:02:21]} 17. Qb2 {[%clk 0:00:42]}  O-O {[%clk 0:02:08]} 18. a4 {[%clk 0:00:33]}  Rfd8 {[%clk 0:02:02]} 19. Re1 {[%clk 0:00:31]}  Nf8 {[%clk 0:01:51]} 20. c4 {[%clk 0:00:24]}  Ng6 {[%clk 0:01:46]} 21. g3 {[%clk 0:00:23]}  Qc6 {[%clk 0:01:42]} 22. Kg2 {[%clk 0:00:23]}  Rxa4 {[%clk 0:01:35]} 23. Rxa4 {[%clk 0:00:21]}  Qxa4 {[%clk 0:01:35]} 24. Nc3 {[%clk 0:00:18]}  Qxc4 {[%clk 0:01:31]} 25. Re2 {[%clk 0:00:18]}  b5 {[%clk 0:01:27]} 26. Ng5 {[%clk 0:00:18]}  b4 {[%clk 0:01:19]} 27. Nce4 {[%clk 0:00:18]}  h6 {[%clk 0:01:17]} 28. Nxc5 {[%clk 0:00:16]}  Qxe2+ {[%clk 0:01:08]} 29. Qxe2 {[%clk 0:00:16]}  Rd2 {[%clk 0:01:08]} 30. Kf3 {[%clk 0:00:14]}  Rxe2 {[%clk 0:01:08]} 31. Kxe2 {[%clk 0:00:11]}  b2 {[%clk 0:01:08]} 0-1


[Site "https://www.chess.com"]

[Event "Titled Tuesday Blitz July 18 Late 2023"]
[White "kiwibobo"]
[Black "szachmistrz2500"]
[WhiteElo "2321"]
[BlackElo "2473"]
[Result "0-1"]
[Round "5"]
[TimeControl "180+2"]
[Date "2023.07.18"]
[WhiteClock "0:00:59"]
[BlackClock "0:01:07"]
[Board "119"]

1. e4 {[%clk 0:03:00]}  c5 {[%clk 0:02:59]} 2. Nf3 {[%clk 0:03:00]}  e6 {[%clk 0:02:59]} 3. d4 {[%clk 0:03:01]}  cxd4 {[%clk 0:02:59]} 4. Nxd4 {[%clk 0:03:01]}  Nc6 {[%clk 0:02:58]} 5. Nc3 {[%clk 0:03:02]}  Qc7 {[%clk 0:02:57]} 6. Be2 {[%clk 0:03:02]}  Nf6 {[%clk 0:02:57]} 7. O-O {[%clk 0:03:00]}  a6 {[%clk 0:02:56]} 8. Be3 {[%clk 0:03:00]}  Be7 {[%clk 0:02:49]} 9. f4 {[%clk 0:02:59]}  d6 {[%clk 0:02:49]} 10. a4 {[%clk 0:02:59]}  O-O {[%clk 0:02:47]} 11. Kh1 {[%clk 0:02:57]}  Bd7 {[%clk 0:02:46]} 12. Nb3 {[%clk 0:02:57]}  Na5 {[%clk 0:02:41]} 13. Bf3 {[%clk 0:02:55]}  Nc4 {[%clk 0:02:36]} 14. Bc1 {[%clk 0:02:41]}  Rac8 {[%clk 0:02:35]} 15. a5 {[%clk 0:02:38]}  Rfd8 {[%clk 0:02:31]} 16. Qe2 {[%clk 0:02:36]}  e5 {[%clk 0:02:23]} 17. Nd5 {[%clk 0:02:33]}  Nxd5 {[%clk 0:02:19]} 18. exd5 {[%clk 0:02:34]}  Bf6 {[%clk 0:02:13]} 19. c3 {[%clk 0:02:32]}  Re8 {[%clk 0:02:06]} 20. fxe5 {[%clk 0:02:28]}  Bxe5 {[%clk 0:02:05]} 21. Qd3 {[%clk 0:02:25]}  Bb5 {[%clk 0:02:03]} 22. Nd4 {[%clk 0:02:21]}  Nxb2 {[%clk 0:01:53]} 23. Nxb5 {[%clk 0:02:21]}  Nxd3 {[%clk 0:01:52]} 24. Nxc7 {[%clk 0:02:21]}  Rxc7 {[%clk 0:01:52]} 25. Be3 {[%clk 0:02:13]}  Bxc3 {[%clk 0:01:49]} 26. Bb6 {[%clk 0:02:08]}  Bxa1 {[%clk 0:01:41]} 27. Bxc7 {[%clk 0:02:07]}  Bd4 {[%clk 0:01:35]} 28. g3 {[%clk 0:02:04]}  Bc5 {[%clk 0:01:30]} 29. Rb1 {[%clk 0:01:53]}  Re1+ {[%clk 0:01:28]} 30. Rxe1 {[%clk 0:01:54]}  Nxe1 {[%clk 0:01:28]} 31. Be4 {[%clk 0:01:47]}  g6 {[%clk 0:01:25]} 32. g4 {[%clk 0:01:21]}  Kg7 {[%clk 0:01:22]} 33. Bb6 {[%clk 0:01:21]}  Bxb6 {[%clk 0:01:15]} 34. axb6 {[%clk 0:01:21]}  a5 {[%clk 0:01:10]} 35. Kg1 {[%clk 0:01:18]}  a4 {[%clk 0:01:10]} 36. Kf2 {[%clk 0:01:03]}  a3 {[%clk 0:01:09]} 37. Bb1 {[%clk 0:01:04]}  Nc2 {[%clk 0:01:08]} 38. Ke2 {[%clk 0:00:59]}  Nb4 {[%clk 0:01:07]} 0-1


[Site "https://www.chess.com"]